fUSD/lending_fUSD_20260129
["ID","MTS","AMOUNT","RATE_DAILY","PERIOD"]
[403903970,1769650233256,-860.0,0.0001739,2]
[403903971,1769650233266,-301.1433787,0.0001739,2]
[403903972,1769650233275,-860.0,0.00017427,2]
[403903973,1769650233285,-1069.0383045,0.00017453,2]
[403903974,1769650233294,-19721.59716518,0.00017478,2]
[403903975,1769650233303,-159.81572425,0.00017478,2]
[403903976,1769650233312,-250.0,0.00017507,2]
[403903977,1769650233321,-1069.0383045,0.00017527,2]
[403903978,1769650233330,-349.33,0.00017555,2]
[403903979,1769650233339,-1069.0383045,0.00017602,2]
[403903980,1769650233348,-19721.59716518,0.00017619,2]
[403903981,1769650233358,-860.0,0.0001763,2]
[403903982,1769650233367,-500.72569541,0.0001764,2]
[403903983,1769650233376,-1500.0,0.000177,2]
[403903984,1769650233385,-1500.0,0.000177,2]
[403903985,1769650233395,-2011.0,0.000177,2]
[403903986,1769650233404,-19721.59716518,0.00017759,2]
[403903987,1769650233414,-500.0,0.00017808,2]
[403903988,1769650233423,-1333.33333,0.0001782,2]
[403903989,1769650233432,-1333.33333,0.0001782,2]
[403903990,1769650233442,-349.33,0.00017829,2]
[403903991,1769650233451,-5070.0,0.00017831,2]
[403903992,1769650233460,-500.0,0.00017863,2]
[403903993,1769650233470,-194.63777593,0.00017865,2]
[403903994,1769650233479,-343.36410789,0.00017865,2]
[403903995,1769650233489,-513.65217015,0.00017865,2]
[403903996,1769650233498,-694.98,0.00017865,2]
[403903997,1769650233507,-1600.0,0.00017895,2]
[403903998,1769650233517,-19721.59716518,0.000179,2]
[403903999,1769650233526,-159.81572425,0.000179,2]
[403904000,1769650233535,-1512.69052239,0.000179,2]
[403904001,1769650233544,-500.0,0.00017918,2]
[403904002,1769650233553,-500.0,0.00017972,2]
[403904003,1769650233563,-163.0,0.00017973,2]
[403904004,1769650233573,-164.67448754,0.00017973,2]
[403904005,1769650233584,-1000.0,0.00017976,2]
[403904006,1769650233594,-24588.67727549,0.0001799,3]
[403904007,1769650233604,-152.21,0.0001799,2]
[403904008,1769650233614,-152.21,0.0001799,2]
[403904009,1769650233627,-152.21,0.0001799,2]
[403904010,1769650233637,-152.21,0.0001799,2]
[403904011,1769650233646,-152.21,0.0001799,2]
[403904012,1769650233655,-152.21,0.0001799,2]
[403904013,1769650233666,-152.21,0.0001799,2]
[403904014,1769650233675,-152.21,0.0001799,2]
[403904015,1769650233684,-152.21,0.0001799,2]
[403904016,1769650233694,-152.21,0.0001799,2]
[403904017,1769650233704,-152.21,0.0001799,2]
[403904018,1769650233714,-152.21,0.0001799,2]
[403904019,1769650233723,-152.21,0.0001799,2]
[403904020,1769650233735,-152.21,0.0001799,2]
[403904021,1769650233744,-152.21,0.0001799,2]
[403904022,1769650233753,-152.21,0.0001799,2]
[403904023,1769650233763,-152.21,0.0001799,2]
[403904024,1769650233773,-152.21,0.0001799,2]
[403904025,1769650233782,-152.21,0.0001799,2]
[403904026,1769650233791,-382.06235878,0.0001799,2]
[403904027,1769650233800,-382.06235878,0.0001799,2]
[403904028,1769650233810,-382.06235878,0.0001799,2]
[403904029,1769650233820,-948.565587,0.00017994,2]
[403904030,1769650233831,-36522.1482686,0.00017999,2]
[403904031,1769650233841,-1479.26158314,0.00017999,2]
[403904032,1769650233881,-255.51004428,0.00017999,2]
[403904033,1769650233891,-607.67795469,0.00017999,2]
[403904034,1769650233902,-663.7357518,0.00017999,2]
[403904035,1769650233921,-387.14054109,0.00017999,2]
[403904036,1769650233929,-500.0,0.00017999,2]
[403904037,1769650233938,-10373.31293297,0.00017999,2]
[403904038,1769650233949,-9412.5,0.00017999,2]
[403904039,1769650233976,-374.7451931,0.00016907,2]
[403904040,1769650233987,-324.09812106,0.00016907,2]
[403904041,1769650233999,-9819.23045548,0.00016907,2]
[403904042,1769650234009,-10475.92482164,0.00017999,2]
[403904043,1769650234020,-461.17361602,0.00017999,2]
[403904044,1769650234030,-576.48351554,0.00017999,2]
[403904045,1769650234041,-1449.94246415,0.00017999,2]
[403904046,1769650234057,-377.98672431,0.00017999,2]
[403904047,1769650234072,-1215.64447999,0.00017999,2]
[403904055,1769650238363,-6734.89884,0.00017049,2]
[403904057,1769650238374,-576.55739814,0.00017049,2]
[403904058,1769650238399,-251.45225051,0.00017049,2]
[403904059,1769650238447,-2955.16528099,0.00017049,2]
[403904060,1769650238456,-1069.0383045,0.00017676,2]
[403904062,1769650238466,-140164.04417968,0.00017999,2]
[403904064,1769650238475,-30224.74378615,0.00017999,2]
[403904065,1769650238485,-1065071.53742352,0.00018,2]
[403904066,1769650238495,-151.0,0.00018,2]
[403904067,1769650238505,-150.0,0.00018,2]
[403904068,1769650238515,-151.0,0.00018,2]
[403904069,1769650238525,-200.0,0.00018,2]
[403904070,1769650238534,-3725876.81227945,0.00018,2]
[403904071,1769650238546,-1503.20181405,0.00018,2]
[403904072,1769650238991,-5859.15640833,0.00018,2]
[403904073,1769650239103,-1563.41372053,0.00018,2]
[403904075,1769650240108,-8779.80959135,0.00018,2]
[403904077,1769650240641,-266.271,0.00017751,2]
[403904078,1769650240673,-444.09,0.00017751,2]
[403904079,1769650240684,-358.6773045,0.00017751,2]
[403904080,1769650240696,-83.65029467,0.00018,2]
[403904081,1769650240707,-522.22074347,0.00018,2]
[403904099,1769650243632,-151.0,0.00016248,2]
[403904101,1769650243642,-6362.84029242,0.00017191,2]
[403904106,1769650243743,-51.00131071,0.00017191,2]
[403904107,1769650243758,-500.0,0.00017191,2]
[403904108,1769650244059,-260.34861082,0.00017191,2]
[403904109,1769650244072,-3343.88355569,0.00017191,2]
[403904110,1769650244081,-15300.29615189,0.00018,2]
[403904121,1769650246101,-500.0,0.00016837,2]
[403904122,1769650246111,-500.0,0.00016837,2]
[403904123,1769650246121,-284.0,0.00016892,2]
[403904124,1769650246404,-216.0,0.00016892,2]
[403904125,1769650246413,-500.0,0.00016892,2]
[403904126,1769650246422,-500.0,0.00016947,2]
[403904127,1769650246432,-500.0,0.00016947,2]
[403904128,1769650246440,-500.0,0.00017001,2]
[403904129,1769650246449,-200.02675935,0.00017001,2]
[403904141,1769650595070,4386.24,0.0001341,2]
[403904142,1769650868284,-150.00176492,0.00019103,6]
[403904144,1769650955191,-220.53,0.0001738,3]
[403904146,1769650955581,-163.0,0.000179,3]
[403904147,1769650955602,-163.0,0.000179,3]
[403904148,1769650955622,-191.84379927,0.000179,3]
[403904149,1769650955649,-500.0,0.000189,3]
[403904150,1769650959414,304.0,0.00021,120]
[403904151,1769650962797,5337.02082598,0.00021,30]
[403904152,1769650964193,-3459.78,0.00015727,2]
[403904153,1769650964212,-151.0,0.00016082,2]
[403904154,1769650964232,-151.0,0.00016082,2]
[403904155,1769650964254,-155.45,0.00016085,2]
[403904156,1769650964279,-151.0,0.00016089,2]
[403904157,1769650964299,-158.27113696,0.00016152,2]
[403904158,1769650964319,-150.0,0.00016227,2]
[403904159,1769650964339,-171.32,0.00016345,2]
[403904160,1769650964358,-1200.0,0.00016372,2]
[403904161,1769650964378,-300.0,0.00016372,2]
[403904162,1769650964398,-300.0,0.00016372,2]
[403904163,1769650964419,-304.0,0.00016372,2]
[403904164,1769650964439,-500.0,0.00016373,2]
[403904165,1769650964458,-500.0,0.00016373,2]
[403904166,1769650964478,-500.0,0.00016373,2]
[403904167,1769650964498,-500.0,0.00016373,2]
[403904168,1769650964518,-500.0,0.00016373,2]
[403904169,1769650964537,-500.0,0.00016373,2]
[403904170,1769650964557,-500.0,0.00016373,2]
[403904171,1769650964577,-500.0,0.00016373,2]
[403904172,1769650964597,-500.0,0.00016373,2]
[403904173,1769650964617,-500.0,0.00016373,2]
[403904174,1769650964638,-500.0,0.00016373,2]
[403904175,1769650964659,-150.00176492,0.00016424,2]
[403904176,1769650964683,-3505.69934984,0.00016424,2]
[403904177,1769650964705,-262.75371289,0.00016434,2]
[403904178,1769650964725,-866.49883549,0.00016434,2]
[403904179,1769650964745,-227.11,0.00016438,2]
[403904180,1769650964765,-1837.173,0.00016513,2]
[403904181,1769650964787,-500.0,0.00016513,2]
[403904182,1769650964809,-500.0,0.00016513,2]
[403904183,1769650964832,-500.0,0.00016513,2]
[403904184,1769650964858,-500.0,0.00016513,2]
[403904185,1769650964877,-304.5819988,0.00016513,2]
[403904186,1769650964903,-500.0,0.00016513,2]
[403904187,1769650964924,-500.0,0.00016513,2]
[403904188,1769650964946,-500.0,0.00016513,2]
[403904189,1769650964966,-300.09545442,0.00016513,2]
[403904190,1769650964988,-500.0,0.00016513,2]
[403904191,1769650965011,-500.0,0.00016513,2]
[403904192,1769650965036,-500.0,0.00016513,2]
[403904193,1769650965056,-500.0,0.00016513,2]
[403904194,1769650965078,-500.0,0.00016513,2]
[403904195,1769650965101,-500.0,0.00016513,2]
[403904196,1769650965126,-500.0,0.00016513,2]
[403904197,1769650965151,-500.0,0.00016513,2]
[403904198,1769650965175,-500.0,0.00016513,2]
[403904199,1769650965196,-276.49911509,0.00016513,2]
[403904200,1769650965217,-500.0,0.00016513,2]
[403904201,1769650965241,-500.0,0.00016513,2]
[403904202,1769650965264,-500.0,0.00016513,2]
[403904203,1769650965285,-500.0,0.00016513,2]
[403904204,1769650965309,-500.0,0.00016513,2]
[403904205,1769650965330,-500.0,0.00016513,2]
[403904206,1769650965352,-500.0,0.00016513,2]
[403904207,1769650965374,-500.0,0.00016513,2]
[403904208,1769650965395,-500.0,0.00016513,2]
[403904209,1769650965417,-500.0,0.00016513,2]
[403904210,1769650965438,-500.0,0.00016513,2]
[403904211,1769650965461,-500.0,0.00016513,2]
[403904212,1769650965481,-500.0,0.00016513,2]
[403904213,1769650965504,-500.0,0.00016513,2]
[403904214,1769650965524,-569.29850739,0.00016513,2]
[403904215,1769650965548,-500.0,0.00016513,2]
[403904216,1769650965568,-500.0,0.00016513,2]
[403904217,1769650965593,-500.0,0.00016513,2]
[403904218,1769650965614,-500.0,0.00016513,2]
[403904219,1769650965637,-626.15438348,0.00016513,2]
[403904220,1769650965659,-500.0,0.00016513,2]
[403904221,1769650965681,-500.0,0.00016513,2]
[403904222,1769650965704,-500.0,0.00016513,2]
[403904223,1769650965727,-500.0,0.00016513,2]
[403904224,1769650965752,-500.0,0.00016513,2]
[403904225,1769650965775,-500.0,0.00016513,2]
[403904226,1769650965799,-500.0,0.00016513,2]
[403904227,1769650965827,-500.0,0.00016513,2]
[403904228,1769650965861,-500.0,0.00016513,2]
[403904229,1769650965885,-500.0,0.00016513,2]
[403904230,1769650965907,-500.0,0.00016513,2]
[403904231,1769650965927,-197.38879056,0.00016513,2]
[403904232,1769650965948,-500.00000001,0.00016513,2]
[403904233,1769650965968,-500.0,0.00016513,2]
[403904234,1769650965990,-500.0,0.00016513,2]
[403904235,1769650966011,-208.51647258,0.00016513,2]
[403904236,1769650966032,-342.65804218,0.00016513,2]
[403904237,1769650966054,-500.0,0.00016513,2]
[403904238,1769650966075,-114821.36847456,0.00016514,2]
[403904239,1769650966095,-171.66,0.00016514,2]
[403904240,1769650966116,-171.66,0.00016514,2]
[403904241,1769650966138,-171.66,0.00016514,2]
[403904242,1769650966160,-171.66,0.00016514,2]
[403904243,1769650966182,-363.9,0.00016523,2]
[403904244,1769650966204,-2895.3024,0.00016524,2]
[403904245,1769650966229,-1334906.53856083,0.00016524,2]
[403904251,1769651049379,151.0,0.0001607,2]
[403904254,1769651065872,151.0,0.00016076,2]
[403904255,1769651108858,161.0,0.00020349,120]
[403904256,1769651136558,-178.14403004,0.00016269,2]
[403904257,1769651161945,151.0,0.00016051,2]
[403904258,1769651178550,151.0,0.00016055,2]
[403904259,1769651194359,151.0,0.00016055,2]
[403904260,1769651210761,151.0,0.00016055,2]
[403904261,1769651225088,-356.79596996,0.00016269,2]
[403904262,1769651225109,-534.94,0.00016322,2]
[403904263,1769651225130,-1200.0,0.00016372,2]
[403904264,1769651225150,-300.0,0.00016372,2]
[403904265,1769651225169,-501.77083236,0.00016373,2]
[403904266,1769651225189,-500.0,0.00016373,2]
[403904267,1769651225210,-500.0,0.00016373,2]
[403904268,1769651225229,-500.0,0.00016373,2]
[403904269,1769651225248,-500.0,0.00016373,2]
[403904270,1769651225267,-500.0,0.00016373,2]
[403904271,1769651225287,-534.94,0.00016374,2]
[403904272,1769651225308,-534.94,0.00016427,2]
[403904273,1769651225327,-1852.42,0.00016431,2]
[403904274,1769651225347,-534.94,0.00016479,2]
[403904275,1769651225371,-500.0,0.00016523,2]
[403904276,1769651225392,-500.0,0.00016523,2]
[403904277,1769651225413,-500.0,0.00016523,2]
[403904278,1769651225436,-500.0,0.00016523,2]
[403904279,1769651225459,-500.0,0.00016523,2]
[403904280,1769651225853,-402.90604261,0.00016523,2]
[403904281,1769651225879,-500.0,0.00016523,2]
[403904282,1769651225901,-500.0,0.00016523,2]
[403904283,1769651225927,-500.0,0.00016523,2]
[403904284,1769651225951,-606.92985074,0.00016523,2]
[403904285,1769651225972,-500.0,0.00016523,2]
[403904286,1769651225999,-13629.17723927,0.00016524,2]
[403904287,1769651226657,151.0,0.00016053,2]
[403904288,1769651228128,151.0,0.00016053,2]
[403904291,1769651271758,500.0,0.00016733,3]
[403904292,1769651271959,500.0,0.00016733,4]
[403904293,1769651272112,500.0,0.00016733,5]
[403904294,1769651272355,500.0,0.00016733,6]
[403904295,1769651272590,500.0,0.00016774,7]
[403904296,1769651272832,500.0,0.00017998,8]
[403904297,1769651273080,419.76745775,0.00017999,9]
[403904298,1769651321126,150.00224956,0.00019195,6]
[403904302,1769651410746,192.0,0.00019718,120]
[403904303,1769651412258,192.0,0.00020704,120]
[403904307,1769651432082,-1351.16659615,0.00016332,2]
[403904308,1769651432093,-1200.0,0.00016372,2]
[403904309,1769651432104,-500.0,0.00016373,2]
[403904310,1769651432116,-500.0,0.00016373,2]
[403904311,1769651432128,-500.50909863,0.00016373,2]
[403904312,1769651432139,-500.0,0.00016373,2]
[403904313,1769651432150,-500.0,0.00016373,2]
[403904314,1769651432161,-316.74242,0.00016373,2]
[403904315,1769651432172,-500.0,0.00016373,2]
[403904316,1769651432183,-291.12,0.00016373,2]
[403904317,1769651432194,-7285.93365549,0.00016424,2]
[403904318,1769651432245,-2801.13224371,0.00016424,2]
[403904319,1769651432257,-1670.43891558,0.00016424,2]
[403904320,1769651432270,-64808.24995691,0.00016424,2]
[403904321,1769651432283,-3180.49739108,0.00016424,2]
[403904322,1769651432296,-895.86861586,0.00016424,2]
[403904323,1769651432310,-318.46151406,0.00016424,2]
[403904324,1769651432325,-761.5885493,0.00016424,2]
[403904325,1769651432342,-980.42227396,0.00016424,2]
[403904327,1769651432356,-1476.0709997,0.00016424,2]
[403904329,1769651432371,-254.595,0.00016424,2]
[403904332,1769651432386,-7726.57604308,0.00016424,2]
[403904334,1769651432398,-245036.4914961,0.00016424,2]
[403904389,1769651433011,-328.4750411,0.00016424,2]
[403904392,1769651433024,-671.5249589,0.00016424,2]
[403904444,1769651438244,-1750.70316796,0.00016424,2]
[403904445,1769651438256,-45462.02679117,0.00016424,2]
[403904446,1769651438268,-499.76382378,0.00016424,2]
[403904447,1769651438281,-7118.08635829,0.00016424,2]
[403904448,1769651438294,-996.81646882,0.00016424,2]
[403904449,1769651438314,-984.29185194,0.00016424,2]
[403904450,1769651438357,-1346.99999996,0.00016424,2]
[403904451,1769651438370,-1329772.39028325,0.00016424,2]
[403904452,1769651438381,-8804.69006228,0.00016432,2]
[403904453,1769651438392,-200.0,0.00016472,2]
[403904454,1769651438404,-1351.16659615,0.00016506,2]
[403904455,1769651438414,-926.0970932,0.00016522,2]
[403904456,1769651438424,-400.76998341,0.00016523,2]
[403904457,1769651438435,-650.0,0.00016523,2]
[403904458,1769651438446,-599.23001659,0.00016523,2]
[403904459,1769651438457,-411.11152655,0.00016523,2]
[403904460,1769651438468,-534.94,0.00016532,2]
[403904461,1769651438478,-150.00224956,0.00016535,2]
[403904462,1769651438488,-540.67,0.00016555,2]
[403904463,1769651438499,-534.94,0.00016584,2]
[403904464,1769651438509,-8804.69006228,0.00016595,2]
[403904465,1769651438519,-1000.0,0.00016634,2]
[403904466,1769651438531,-534.94,0.00016637,2]
[403904467,1769651438546,-291.12,0.00016647,2]
[403904468,1769651438556,-1351.16659615,0.0001668,2]
[403904469,1769651438567,-534.94,0.00016689,2]
[403904470,1769651438578,-500.0,0.00016733,2]
[403904471,1769651438588,-511.82421392,0.00016733,2]
[403904472,1769651438599,-509.50804323,0.00016733,2]
[403904473,1769651438609,-500.0,0.00016733,2]
[403904474,1769651438621,-500.0,0.00016733,2]
[403904475,1769651438631,-500.0,0.00016733,2]
[403904476,1769651438642,-500.0,0.00016733,2]
[403904477,1769651438655,-517.21244677,0.00016733,2]
[403904478,1769651438666,-500.0,0.00016733,2]
[403904479,1769651438676,-534.94,0.00016741,2]
[403904481,1769651438687,-8804.69006228,0.00016758,2]
[403904483,1769651438697,-534.94,0.00016794,2]
[403904485,1769651438707,-163.0,0.000168,2]
[403904486,1769651438717,-163.0,0.000168,2]
[403904487,1769651438727,-534.94,0.00016846,2]
[403904489,1769651438738,-1351.16659615,0.00016855,2]
[403904491,1769651438748,-209.40437684,0.0001689,2]
[403904492,1769651438758,-534.94,0.00016899,2]
[403904493,1769651438767,-500.37082769,0.00016921,2]
[403904494,1769651438777,-1000.0,0.00016921,2]
[403904495,1769651438788,-501.47284446,0.00016921,2]
[403904496,1769651438798,-1004.96930507,0.00016921,2]
[403904497,1769651438808,-1000.0,0.00016921,2]
[403904498,1769651438819,-1000.0,0.00016921,2]
[403904499,1769651438829,-291.12,0.00016921,2]
[403904500,1769651438839,-8804.69006228,0.00016921,2]
[403904501,1769651438849,-5901.61,0.00016922,2]
[403904502,1769651438860,-499.99,0.00016922,2]
[403904503,1769651438870,-217.15233878,0.00016945,2]
[403904504,1769651438880,-534.94,0.00016951,2]
[403904505,1769651438890,-225.18697532,0.00017,2]
[403904506,1769651438904,-534.94,0.00017004,2]
[403904507,1769651438914,-1351.16659615,0.00017029,2]
[403904508,1769651438924,-233.51889341,0.00017055,2]
[403904509,1769651438935,-505.41394898,0.00017055,2]
[403904510,1769651438945,-534.94,0.00017056,2]
[403904511,1769651438955,-8804.69006228,0.00017084,2]
[403904512,1769651438968,-214.0,0.0001709,2]
[403904513,1769651438983,-165.27,0.000171,2]
[403904514,1769651438994,-534.94,0.00017108,2]
[403904515,1769651439006,-242.15909246,0.0001711,2]
[403904516,1769651439016,-534.94,0.00017161,2]
[403904517,1769651439026,-251.11897888,0.00017165,2]
[403904518,1769651439036,-214.0,0.00017171,2]
[403904519,1769651439048,-291.12,0.00017195,2]
[403904520,1769651439059,-1351.16659615,0.00017203,2]
[403904521,1769651439069,-534.94,0.00017213,2]
[403904522,1769651439079,-260.4103811,0.0001722,2]
[403904523,1769651439089,-8804.69006228,0.00017248,2]
[403904524,1769651439099,-534.94,0.00017266,2]
[403904525,1769651439109,-270.0455652,0.00017275,2]
[403904526,1769651439119,-280.03725112,0.0001733,2]
[403904527,1769651439129,-214.0,0.00017342,2]
[403904528,1769651439139,-241.23681044,0.00017356,2]
[403904529,1769651439149,-290.39862941,0.00017385,2]
[403904530,1769651439159,-169.49,0.00017404,2]
[403904531,1769651439169,-214.0,0.00017409,2]
[403904532,1769651439178,-8804.69006228,0.00017411,2]
[403904533,1769651439188,-301.1433787,0.0001744,2]
[403904534,1769651439198,-502.76524497,0.00017444,2]
[403904535,1769651439207,-508.99214535,0.00017444,2]
[403904536,1769651439217,-509.53416261,0.00017444,2]
[403904537,1769651439226,-291.16381915,0.00017468,2]
[403904538,1769651439236,-1500.0,0.00017468,2]
[403904539,1769651439246,-1504.9175951,0.00017468,2]
[403904540,1769651439255,-1500.0,0.00017468,2]
[403904541,1769651439266,-214.0,0.00017521,2]
[403904542,1769651439276,-214.0,0.00017573,2]
[403904543,1769651439286,-8804.69006228,0.00017574,2]
[403904544,1769651439306,-214.0,0.00017599,2]
[403904545,1769651439317,-168.0,0.00017611,2]
[403904546,1769651439327,-272.96263568,0.0001764,2]
[403904547,1769651439338,-168.0,0.00017674,2]
[403904548,1769651439349,-152.171088,0.00017699,2]
[403904549,1769651439359,-153.23607155,0.00017699,2]
[403904550,1769651439369,-158.53165881,0.00017699,2]
[403904551,1769651439380,-500.0,0.00017699,2]
[403904552,1769651439392,-150.0,0.00017699,2]
[403904553,1769651439403,-8804.69006228,0.00017737,2]
[403904554,1769651439416,-271.29423377,0.00017752,2]
[403904555,1769651439427,-551.54501246,0.00017754,2]
[403904556,1769651439437,-150.0,0.00017754,2]
[403904557,1769651439447,-1495.36386148,0.000178,2]
[403904558,1769651439457,-500.0,0.00017808,2]
[403904559,1769651439467,-150.0,0.00017809,2]
[403904560,1769651439479,-1495.36386141,0.00017814,2]
[403904561,1769651439684,-677.04012,0.0001782,2]
[403904562,1769651439694,-677.04013,0.0001782,2]
[403904563,1769651439703,-1495.36386141,0.00017829,2]
[403904564,1769651439712,-1495.36386141,0.00017843,2]
[403904565,1769651439722,-636.62775949,0.00017856,2]
[403904566,1769651439731,-1123.08682963,0.00017856,2]
[403904567,1769651439740,-1680.07072972,0.00017856,2]
[403904568,1769651439750,-2273.1885,0.00017856,2]
[403904569,1769651439759,-1495.36386141,0.00017857,2]
[403904570,1769651439768,-500.0,0.00017863,2]
[403904571,1769651439777,-150.0,0.00017863,2]
[403904572,1769651439786,-150.00224956,0.00017865,2]
[403904573,1769651439795,-1495.36386141,0.00017871,2]
[403904574,1769651439804,-1495.36386141,0.00017886,2]
[403904575,1769651439814,-600.0,0.00017896,2]
[403904576,1769651439824,-161.38883438,0.000179,2]
[403904577,1769651439833,-8804.69006228,0.000179,2]
[403904578,1769651439847,-26474.06695933,0.000179,2]
[403904579,1769651439857,-193.21891723,0.000179,2]
[403904580,1769651439866,-1495.36386141,0.000179,2]
[403904581,1769651439875,-1010.72396452,0.000179,2]
[403904582,1769651439884,-223.33261478,0.000179,2]
[403904583,1769651439894,-500.0,0.00017918,2]
[403904584,1769651439903,-209.28369003,0.00017918,2]
[403904585,1769651439913,-421.0,0.00017956,2]
[403904586,1769651439922,-421.0,0.00017961,2]
[403904587,1769651439932,-500.0,0.00017972,2]
[403904588,1769651439941,-171.32,0.00017979,2]
[403904589,1769651439950,-203.0,0.00017982,2]
[403904590,1769651439960,-110813.1078908,0.00017993,2]
[403904591,1769651439972,-9967.5234848,0.00017993,2]
[403904592,1769651439982,-7830.456892,0.00017993,2]
[403904593,1769651439995,-155.268,0.00017999,2]
[403904594,1769651440005,-4265.0,0.00018,2]
[403904595,1769651440014,-5010593.96187825,0.00018,2]
[403904596,1769651440028,-1263.58523677,0.00018,2]
[403904597,1769651440250,-55486.77724655,0.00018,2]
[403904599,1769651440262,-408.56770476,0.00018,2]
[403904601,1769651440289,-3176.5134806,0.00018,2]
[403904602,1769651440301,-980.94016078,0.00018,2]
[403904603,1769651440316,-3276.95,0.00018,2]
[403904604,1769651440335,-34095.57651,0.00018,2]
[403904614,1769651440902,-12905.37534676,0.00018,2]
[403904616,1769651441002,-4529.51327613,0.00018,2]
[403904617,1769651441014,-374.09232953,0.00018,2]
[403904618,1769651441025,-2882.88070452,0.00018,2]
[403904619,1769651441057,-233180.77014392,0.00018,2]
[403904620,1769651441095,-975.79008711,0.00018,2]
[403904624,1769651443747,-687.0401016,0.00017377,2]
[403904625,1769651443758,-654.465286,0.00017377,2]
[403904626,1769651443776,-9.66120855,0.00017377,2]
[403904627,1769651443787,-378.71879945,0.00018,2]
[403904628,1769651443798,-4273.0804876,0.00018,2]
[403904629,1769651444993,-333.57993276,0.00018,2]
[403904630,1769651445059,-262.00320104,0.00018,2]
[403904631,1769651445097,-39843.08934638,0.00018,2]
[403904632,1769651445108,-568807.53478287,0.00018,2]
[403904719,1769651446423,-2633.83592813,0.00018,2]
[403904720,1769651446435,-2923.72772311,0.00018,2]
[403904721,1769651446446,-3609.06,0.00018,2]
[403904722,1769651446476,-516.64955732,0.00018,2]
[403904723,1769651446532,-2507.76276147,0.00018,2]
[403904731,1769651475226,200.0,0.000174,6]
[403904732,1769651477179,400.0,0.000175,6]
[403904733,1769651479270,600.0,0.000176,6]
[403904734,1769651481356,900.0,0.000177,6]
[403904735,1769651483459,1100.0,0.000178,6]
[403904736,1769651486675,200.0,0.000179,6]
[403904740,1769651754383,-2895.3024,0.00016272,2]
[403904741,1769651754412,-300.0,0.00016323,2]
[403904742,1769651754438,-304.0,0.00016323,2]
[403904743,1769651754463,-1200.0,0.00016323,2]
[403904744,1769651754489,-300.0,0.00016323,2]
[403904745,1769651754515,-1495.36386148,0.00016324,2]
[403904746,1769651754541,-10779.04553745,0.00016324,2]
[403904747,1769651754566,-1815.10633301,0.00016324,2]
[403904748,1769651754592,-360.03878107,0.00016324,2]
[403904749,1769651761725,300.0,0.00016323,2]
[403904750,1769651768256,1208.21859773,0.00016324,2]
[403904751,1769651778277,-2834.92448926,0.00016324,2]
[403904753,1769651824117,-151.0,0.00016048,2]
[403904754,1769651824146,-151.0,0.00016048,2]
[403904755,1769651824172,-151.0,0.0001605,2]
[403904756,1769651824198,-151.0,0.0001605,2]
[403904757,1769651824224,-396.0,0.00016324,2]
[403904760,1769652337149,-158.27113696,0.00016008,2]
[403904761,1769652337178,-155.45,0.00016028,2]
[403904762,1769652337210,-151.0,0.00016036,2]
[403904763,1769652337240,-151.0,0.00016039,2]
[403904764,1769652337270,-203.0,0.00016272,2]
[403904765,1769652337296,-2231.36815465,0.00016273,2]
[403904766,1769652545347,-166.66,0.00014761,2]
[403904767,1769652545367,-29.57481375,0.00015071,2]
[403904768,1769652549096,-137.08518625,0.00015071,2]
[403904769,1769652549117,-82.45044914,0.00015382,2]
[403904770,1769652557092,-84.20955086,0.00015382,2]
[403904771,1769652557112,-1494.3756334,0.00015415,2]
[403904772,1769652563095,-328.3843666,0.00015415,2]